[Event "January 9 Late 2024"]
[Site "https://www.chess.com"]
[Date "2024.01.09"]
[Round "2"]
[White "Olenik Campa, Rudi"]
[Black "Skaric, Djuro"]
[Result "1-0"]
[Board "126"]
[TimeControl "180+1"]
[WhiteFideId "14633264"]
[BlackFideId "934569"]
[WhiteElo "2579"]
[BlackElo "2309"]
[WhiteTeam "SLO"]
[BlackTeam "SRB"]
[WhiteClock "0:00:09"]
[BlackClock "0:00:03"]

1. e4 {[%clk 0:03:00]}  d6 {[%clk 0:03:00]} 2. d4 {[%clk 0:02:54]}  g6 {[%clk 0:03:01]} 3. g3 {[%clk 0:02:54]}  Bg7 {[%clk 0:03:01]} 4. Bg2 {[%clk 0:02:54]}  Nf6 {[%clk 0:03:02]} 5. Ne2 {[%clk 0:02:54]}  O-O {[%clk 0:03:03]} 6. O-O {[%clk 0:02:54]}  Nc6 {[%clk 0:03:03]} 7. h3 {[%clk 0:02:53]}  e5 {[%clk 0:03:04]} 8. c3 {[%clk 0:02:54]}  Nd7 {[%clk 0:03:04]} 9. Be3 {[%clk 0:02:53]}  f5 {[%clk 0:03:04]} 10. dxe5 {[%clk 0:02:53]}  dxe5 {[%clk 0:03:04]} 11. Nd2 {[%clk 0:02:49]}  Nb6 {[%clk 0:03:03]} 12. Qc2 {[%clk 0:02:47]}  Be6 {[%clk 0:03:03]} 13. a4 {[%clk 0:02:42]}  Qe7 {[%clk 0:02:58]} 14. a5 {[%clk 0:02:41]}  Nd7 {[%clk 0:02:58]} 15. a6 {[%clk 0:02:34]}  f4 {[%clk 0:02:47]} 16. gxf4 {[%clk 0:02:31]}  bxa6 {[%clk 0:01:56]} 17. Rxa6 {[%clk 0:02:29]}  Nb6 {[%clk 0:01:42]} 18. fxe5 {[%clk 0:02:08]}  Qh4 {[%clk 0:01:29]} 19. Nf3 {[%clk 0:01:47]}  Rxf3 {[%clk 0:01:28]} 20. Bxf3 {[%clk 0:01:48]}  Bxh3 {[%clk 0:01:28]} 21. Bg2 {[%clk 0:01:19]}  Qg4 {[%clk 0:01:13]} 22. Ng3 {[%clk 0:01:15]}  Nxe5 {[%clk 0:01:09]} 23. Qe2 {[%clk 0:01:10]}  Qc8 {[%clk 0:01:02]} 24. f4 {[%clk 0:01:04]}  Bxg2 {[%clk 0:01:00]} 25. Kxg2 {[%clk 0:01:04]}  Nec4 {[%clk 0:00:56]} 26. Raa1 {[%clk 0:00:55]}  h5 {[%clk 0:00:52]} 27. Rh1 {[%clk 0:00:51]}  Nxe3+ {[%clk 0:00:48]} 28. Qxe3 {[%clk 0:00:52]}  Qg4 {[%clk 0:00:45]} 29. Qf3 {[%clk 0:00:49]}  Qe6 {[%clk 0:00:44]} 30. f5 {[%clk 0:00:47]}  Qb3 {[%clk 0:00:43]} 31. Raf1 {[%clk 0:00:42]}  Qxb2+ {[%clk 0:00:41]} 32. Rf2 {[%clk 0:00:43]}  Qxc3 {[%clk 0:00:36]} 33. Qxc3 {[%clk 0:00:40]}  Bxc3 {[%clk 0:00:35]} 34. fxg6 {[%clk 0:00:40]}  Kg7 {[%clk 0:00:34]} 35. Nxh5+ {[%clk 0:00:37]}  Kxg6 {[%clk 0:00:34]} 36. Nf4+ {[%clk 0:00:37]}  Kg7 {[%clk 0:00:32]} 37. Kf3 {[%clk 0:00:36]}  Rf8 {[%clk 0:00:27]} 38. Rg2+ {[%clk 0:00:36]}  Kf6 {[%clk 0:00:25]} 39. Nd3 {[%clk 0:00:28]}  Bd4 {[%clk 0:00:20]} 40. Ke2 {[%clk 0:00:25]}  Ke7 {[%clk 0:00:18]} 41. Rh7+ {[%clk 0:00:24]}  Kd6 {[%clk 0:00:18]} 42. Rg6+ {[%clk 0:00:24]}  Rf6 {[%clk 0:00:17]} 43. Rxf6+ {[%clk 0:00:12]}  Bxf6 {[%clk 0:00:17]} 44. Rh6 {[%clk 0:00:11]}  Ke7 {[%clk 0:00:14]} 45. Nb4 {[%clk 0:00:11]}  Kf7 {[%clk 0:00:10]} 46. Rh7+ {[%clk 0:00:10]}  Kg6 {[%clk 0:00:07]} 47. Rxc7 {[%clk 0:00:10]}  a5 {[%clk 0:00:07]} 48. Nd5 {[%clk 0:00:08]}  Nxd5 {[%clk 0:00:07]} 49. exd5 {[%clk 0:00:09]}  Be5 {[%clk 0:00:07]} 50. Ra7 {[%clk 0:00:08]}  Bc3 {[%clk 0:00:07]} 51. Kd3 {[%clk 0:00:09]}  Bb4 {[%clk 0:00:07]} 52. Kc4 {[%clk 0:00:09]}  Kf5 {[%clk 0:00:07]} 53. Kb5 {[%clk 0:00:09]}  Ke5 {[%clk 0:00:08]} 54. Kc6 {[%clk 0:00:09]}  Bf8 {[%clk 0:00:05]} 55. Ra8 {[%clk 0:00:09]}  Bb4 {[%clk 0:00:05]} 56. Re8+ {[%clk 0:00:09]}  Kf6 {[%clk 0:00:05]} 57. d6 {[%clk 0:00:09]}  Kf7 {[%clk 0:00:03]} 58. d7 {[%clk 0:00:09]} 1-0

[Event "January 9 Late 2024"]
[Site "https://www.chess.com"]
[Date "2024.01.09"]
[Round "2"]
[White "Carvajal Gorgona, Jonathan"]
[Black "Kokoszczynski, Jan"]
[Result "0-1"]
[Board "127"]
[TimeControl "180+1"]
[WhiteFideId "6500625"]
[BlackFideId "1174460"]
[WhiteElo "2270"]
[BlackElo "2564"]
[WhiteTeam "CRC"]
[BlackTeam "POL"]
[WhiteClock "0:00:01"]
[BlackClock "0:00:12"]

1. e4 {[%clk 0:03:00]}  c5 {[%clk 0:02:57]} 2. Nc3 {[%clk 0:02:58]}  Nc6 {[%clk 0:02:54]} 3. f4 {[%clk 0:02:56]}  g6 {[%clk 0:02:51]} 4. Nf3 {[%clk 0:02:57]}  Bg7 {[%clk 0:02:51]} 5. a4 {[%clk 0:02:51]}  e6 {[%clk 0:02:43]} 6. e5 {[%clk 0:02:47]}  d5 {[%clk 0:02:40]} 7. d4 {[%clk 0:02:44]}  cxd4 {[%clk 0:02:16]} 8. Nb5 {[%clk 0:02:43]}  Bf8 {[%clk 0:01:59]} 9. Nbxd4 {[%clk 0:02:12]}  Nge7 {[%clk 0:01:56]} 10. c3 {[%clk 0:01:55]}  Nxd4 {[%clk 0:01:55]} 11. Nxd4 {[%clk 0:01:55]}  Nc6 {[%clk 0:01:55]} 12. Be3 {[%clk 0:01:53]}  h5 {[%clk 0:01:51]} 13. Bd3 {[%clk 0:01:50]}  Bc5 {[%clk 0:01:18]} 14. Nxc6 {[%clk 0:01:43]}  Qb6 {[%clk 0:01:18]} 15. Bxc5 {[%clk 0:01:42]}  Qxc5 {[%clk 0:01:19]} 16. Nd4 {[%clk 0:01:42]}  Bd7 {[%clk 0:01:20]} 17. O-O {[%clk 0:01:34]}  a6 {[%clk 0:01:19]} 18. Kh1 {[%clk 0:01:34]}  h4 {[%clk 0:01:20]} 19. a5 {[%clk 0:01:30]}  Rc8 {[%clk 0:01:18]} 20. Qb3 {[%clk 0:01:29]}  Qc7 {[%clk 0:01:13]} 21. Qb6 {[%clk 0:01:21]}  Qxb6 {[%clk 0:01:11]} 22. axb6 {[%clk 0:01:22]}  Ke7 {[%clk 0:01:12]} 23. Ra3 {[%clk 0:00:59]}  Rc5 {[%clk 0:01:12]} 24. b4 {[%clk 0:00:47]}  Rcc8 {[%clk 0:01:12]} 25. Rc1 {[%clk 0:00:41]}  Rhd8 {[%clk 0:01:02]} 26. Kg1 {[%clk 0:00:40]}  Rg8 {[%clk 0:00:58]} 27. Kf2 {[%clk 0:00:33]}  g5 {[%clk 0:00:58]} 28. fxg5 {[%clk 0:00:33]}  Rxg5 {[%clk 0:00:58]} 29. Nf3 {[%clk 0:00:34]}  Rg4 {[%clk 0:00:58]} 30. b5 {[%clk 0:00:25]}  axb5 {[%clk 0:00:55]} 31. Ra7 {[%clk 0:00:25]}  Rb8 {[%clk 0:00:42]} 32. Nd4 {[%clk 0:00:23]}  b4 {[%clk 0:00:42]} 33. Nb5 {[%clk 0:00:20]}  b3 {[%clk 0:00:35]} 34. Nd6 {[%clk 0:00:18]}  Bc6 {[%clk 0:00:32]} 35. Rb1 {[%clk 0:00:16]}  d4 {[%clk 0:00:31]} 36. g3 {[%clk 0:00:16]}  hxg3+ {[%clk 0:00:31]} 37. hxg3 {[%clk 0:00:16]}  Rh8 {[%clk 0:00:30]} 38. Rxb3 {[%clk 0:00:16]}  Rh2+ {[%clk 0:00:30]} 39. Ke1 {[%clk 0:00:16]}  Rxg3 {[%clk 0:00:30]} 40. Nxb7 {[%clk 0:00:14]}  Re3+ {[%clk 0:00:13]} 41. Kd1 {[%clk 0:00:13]}  Bf3+ {[%clk 0:00:10]} 42. Be2 {[%clk 0:00:10]}  Rexe2 {[%clk 0:00:11]} 43. Nd6+ {[%clk 0:00:09]}  Kf8 {[%clk 0:00:12]} 44. Rxf7+ {[%clk 0:00:08]}  Kg8 {[%clk 0:00:12]} 45. Rxf3 {[%clk 0:00:09]}  Ra2 {[%clk 0:00:12]} 46. Rg3+ {[%clk 0:00:08]}  Kh8 {[%clk 0:00:12]} 47. Rb1 {[%clk 0:00:01]}  Rh1+ {[%clk 0:00:12]} 0-1

[Event "January 9 Late 2024"]
[Site "https://www.chess.com"]
[Date "2024.01.09"]
[Round "2"]
[White "Jing, Andrew"]
[Black "Caruana, Fabiano"]
[Result "0-1"]
[Board "128"]
[TimeControl "180+1"]
[WhiteFideId "30984076"]
[BlackFideId "2020009"]
[WhiteElo "2153"]
[BlackElo "3013"]
[WhiteTeam "USA"]
[BlackTeam "USA"]
[WhiteClock "0:00:04"]
[BlackClock "0:00:06"]

1. d4 {[%clk 0:03:00]}  a6 {[%clk 0:03:00]} 2. e4 {[%clk 0:03:00]}  b5 {[%clk 0:03:00]} 3. Nf3 {[%clk 0:02:56]}  Bb7 {[%clk 0:03:00]} 4. Bd3 {[%clk 0:02:56]}  e6 {[%clk 0:03:00]} 5. c3 {[%clk 0:02:56]}  Nf6 {[%clk 0:03:00]} 6. Qe2 {[%clk 0:02:55]}  d5 {[%clk 0:02:57]} 7. e5 {[%clk 0:02:55]}  Ne4 {[%clk 0:02:58]} 8. Nbd2 {[%clk 0:02:55]}  Nxd2 {[%clk 0:02:58]} 9. Bxd2 {[%clk 0:02:56]}  c5 {[%clk 0:02:58]} 10. O-O {[%clk 0:02:56]}  Nc6 {[%clk 0:02:58]} 11. Rac1 {[%clk 0:02:54]}  Be7 {[%clk 0:02:57]} 12. Bb1 {[%clk 0:02:49]}  Qb6 {[%clk 0:02:54]} 13. Be3 {[%clk 0:02:49]}  c4 {[%clk 0:02:54]} 14. Bg5 {[%clk 0:02:47]}  h6 {[%clk 0:02:53]} 15. Bxe7 {[%clk 0:02:47]}  Nxe7 {[%clk 0:02:54]} 16. Nh4 {[%clk 0:02:45]}  O-O-O {[%clk 0:02:44]} 17. a3 {[%clk 0:02:43]}  Kb8 {[%clk 0:02:38]} 18. f4 {[%clk 0:02:42]}  g6 {[%clk 0:02:38]} 19. g4 {[%clk 0:02:41]}  h5 {[%clk 0:02:35]} 20. Rf2 {[%clk 0:02:11]}  hxg4 {[%clk 0:02:34]} 21. Qxg4 {[%clk 0:02:11]}  Rh5 {[%clk 0:02:33]} 22. Nf3 {[%clk 0:02:10]}  Nf5 {[%clk 0:02:32]} 23. Bxf5 {[%clk 0:02:08]}  exf5 {[%clk 0:02:24]} 24. Qg3 {[%clk 0:02:08]}  Bc8 {[%clk 0:02:22]} 25. Ng5 {[%clk 0:02:06]}  Be6 {[%clk 0:02:23]} 26. Kg2 {[%clk 0:02:01]}  Rdh8 {[%clk 0:02:23]} 27. Kf3 {[%clk 0:01:56]}  a5 {[%clk 0:02:21]} 28. Rcc2 {[%clk 0:01:51]}  b4 {[%clk 0:02:18]} 29. axb4 {[%clk 0:01:51]}  axb4 {[%clk 0:02:19]} 30. Ke3 {[%clk 0:01:47]}  Bd7 {[%clk 0:02:09]} 31. Rcd2 {[%clk 0:01:43]}  f6 {[%clk 0:02:08]} 32. Nf3 {[%clk 0:01:40]}  fxe5 {[%clk 0:02:01]} 33. fxe5 {[%clk 0:01:40]}  Rh3 {[%clk 0:01:34]} 34. Qf4 {[%clk 0:01:37]}  Be6 {[%clk 0:01:32]} 35. Rg2 {[%clk 0:01:31]}  Qa5 {[%clk 0:01:27]} 36. Rc2 {[%clk 0:01:18]}  Qa1 {[%clk 0:01:22]} 37. Rxg6 {[%clk 0:01:10]}  Qe1+ {[%clk 0:01:08]} 38. Re2 {[%clk 0:01:07]}  Qc1+ {[%clk 0:01:08]} 39. Rd2 {[%clk 0:01:02]}  R8h4 {[%clk 0:00:56]} 40. Qxh4 {[%clk 0:00:45]}  Rxh4 {[%clk 0:00:56]} 41. Nxh4 {[%clk 0:00:45]}  f4+ {[%clk 0:00:56]} 42. Ke2 {[%clk 0:00:41]}  Bh3 {[%clk 0:00:51]} 43. Ng2 {[%clk 0:00:19]}  f3+ {[%clk 0:00:51]} 44. Kxf3 {[%clk 0:00:18]}  Qxd2 {[%clk 0:00:51]} 45. Nf4 {[%clk 0:00:18]}  Bf5 {[%clk 0:00:45]} 46. Rg8+ {[%clk 0:00:18]}  Ka7 {[%clk 0:00:45]} 47. Rg7+ {[%clk 0:00:19]}  Ka6 {[%clk 0:00:44]} 48. Nxd5 {[%clk 0:00:18]}  Qd3+ {[%clk 0:00:43]} 49. Kf2 {[%clk 0:00:18]}  Qd2+ {[%clk 0:00:33]} 50. Kf3 {[%clk 0:00:17]}  Qxb2 {[%clk 0:00:28]} 51. Nxb4+ {[%clk 0:00:16]}  Kb5 {[%clk 0:00:23]} 52. Rb7+ {[%clk 0:00:16]}  Ka4 {[%clk 0:00:23]} 53. Na6 {[%clk 0:00:12]}  Qxc3+ {[%clk 0:00:21]} 54. Kf4 {[%clk 0:00:12]}  Bc8 {[%clk 0:00:08]} 55. Nc5+ {[%clk 0:00:11]}  Ka5 {[%clk 0:00:08]} 56. Rb8 {[%clk 0:00:07]}  Qxd4+ {[%clk 0:00:08]} 57. Ne4 {[%clk 0:00:06]}  Bd7 {[%clk 0:00:07]} 58. Kf3 {[%clk 0:00:04]}  Bc6 {[%clk 0:00:06]} 0-1

[Event "January 9 Late 2024"]
[Site "https://www.chess.com"]
[Date "2024.01.09"]
[Round "2"]
[White "Musalov, Ruslan"]
[Black "Kovalev, Vladislav"]
[Result "1/2-1/2"]
[Board "129"]
[TimeControl "180+1"]
[WhiteFideId "4141490"]
[BlackFideId "13504398"]
[WhiteElo "2447"]
[BlackElo "2885"]
[WhiteTeam "RUS"]
[BlackTeam "FID"]
[WhiteClock "0:00:08"]
[BlackClock "0:00:08"]

1. e4 {[%clk 0:03:00]}  e5 {[%clk 0:02:58]} 2. Nf3 {[%clk 0:03:01]}  Nc6 {[%clk 0:02:59]} 3. b3 {[%clk 0:02:56]}  Nf6 {[%clk 0:02:58]} 4. d3 {[%clk 0:02:55]}  d5 {[%clk 0:02:58]} 5. Nbd2 {[%clk 0:02:54]}  Bb4 {[%clk 0:02:57]} 6. Qe2 {[%clk 0:02:51]}  Bc3 {[%clk 0:02:57]} 7. Rb1 {[%clk 0:02:50]}  Nb4 {[%clk 0:02:54]} 8. Qd1 {[%clk 0:02:24]}  dxe4 {[%clk 0:02:41]} 9. dxe4 {[%clk 0:02:25]}  Nxe4 {[%clk 0:02:42]} 10. Bc4 {[%clk 0:02:16]}  Bf5 {[%clk 0:01:55]} 11. O-O {[%clk 0:02:13]}  Nxd2 {[%clk 0:01:55]} 12. Nxd2 {[%clk 0:01:54]}  O-O {[%clk 0:01:44]} 13. Qf3 {[%clk 0:01:45]}  Bxd2 {[%clk 0:01:44]} 14. Qxf5 {[%clk 0:01:42]}  Bxc1 {[%clk 0:01:35]} 15. Rbxc1 {[%clk 0:01:10]}  Qf6 {[%clk 0:01:35]} 16. Qxf6 {[%clk 0:01:08]}  gxf6 {[%clk 0:01:36]} 17. a3 {[%clk 0:01:07]}  Nc6 {[%clk 0:01:37]} 18. c3 {[%clk 0:00:58]}  Rfd8 {[%clk 0:01:37]} 19. Rfd1 {[%clk 0:00:58]}  Na5 {[%clk 0:01:32]} 20. Kf1 {[%clk 0:00:38]}  Nxc4 {[%clk 0:01:32]} 21. bxc4 {[%clk 0:00:39]}  Kf8 {[%clk 0:01:32]} 22. Ke2 {[%clk 0:00:39]}  Ke7 {[%clk 0:01:29]} 23. Rd5 {[%clk 0:00:39]}  Rxd5 {[%clk 0:01:25]} 24. cxd5 {[%clk 0:00:40]}  Kd6 {[%clk 0:01:26]} 25. c4 {[%clk 0:00:39]}  Rg8 {[%clk 0:01:26]} 26. g3 {[%clk 0:00:38]}  Rg4 {[%clk 0:01:25]} 27. f4 {[%clk 0:00:32]}  exf4 {[%clk 0:01:02]} 28. Kf3 {[%clk 0:00:32]}  f5 {[%clk 0:01:02]} 29. gxf4 {[%clk 0:00:29]}  Kc5 {[%clk 0:01:03]} 30. Re1 {[%clk 0:00:25]}  Kd6 {[%clk 0:00:52]} 31. Re5 {[%clk 0:00:25]}  Rh4 {[%clk 0:00:50]} 32. Rxf5 {[%clk 0:00:24]}  Rxh2 {[%clk 0:00:50]} 33. Rxf7 {[%clk 0:00:22]}  Rc2 {[%clk 0:00:49]} 34. Rxh7 {[%clk 0:00:19]}  Rxc4 {[%clk 0:00:50]} 35. f5 {[%clk 0:00:13]}  Rc1 {[%clk 0:00:48]} 36. Ke4 {[%clk 0:00:12]}  Rc4+ {[%clk 0:00:44]} 37. Ke3 {[%clk 0:00:10]}  Ke5 {[%clk 0:00:43]} 38. Kd3 {[%clk 0:00:03]}  Rc5 {[%clk 0:00:36]} 39. Ke3 {[%clk 0:00:02]}  b5 {[%clk 0:00:30]} 40. Kd3 {[%clk 0:00:02]}  a5 {[%clk 0:00:30]} 41. Re7+ {[%clk 0:00:02]}  Kxf5 {[%clk 0:00:29]} 42. Kd4 {[%clk 0:00:02]}  Rc4+ {[%clk 0:00:30]} 43. Kd3 {[%clk 0:00:02]}  a4 {[%clk 0:00:25]} 44. Re8 {[%clk 0:00:03]}  Rc5 {[%clk 0:00:23]} 45. Kd4 {[%clk 0:00:02]}  Rc4+ {[%clk 0:00:24]} 46. Kd3 {[%clk 0:00:03]}  Rc1 {[%clk 0:00:24]} 47. Rb8 {[%clk 0:00:03]}  Rb1 {[%clk 0:00:24]} 48. Kd4 {[%clk 0:00:03]}  b4 {[%clk 0:00:07]} 49. axb4 {[%clk 0:00:03]}  a3 {[%clk 0:00:07]} 50. Ra8 {[%clk 0:00:03]}  Rxb4+ {[%clk 0:00:08]} 51. Kc5 {[%clk 0:00:04]}  Rb3 {[%clk 0:00:08]} 52. Kc4 {[%clk 0:00:04]}  Re3 {[%clk 0:00:06]} 53. Ra7 {[%clk 0:00:04]}  Ke5 {[%clk 0:00:01]} 54. Rxc7 {[%clk 0:00:04]}  a2 {[%clk 0:00:02]} 55. Ra7 {[%clk 0:00:05]}  Re2 {[%clk 0:00:03]} 56. Kb3 {[%clk 0:00:05]}  Kxd5 {[%clk 0:00:03]} 57. Rxa2 {[%clk 0:00:06]}  Re3+ {[%clk 0:00:03]} 58. Kb2 {[%clk 0:00:06]}  Kc4 {[%clk 0:00:03]} 59. Ra8 {[%clk 0:00:06]}  Re2+ {[%clk 0:00:03]} 60. Kb1 {[%clk 0:00:06]}  Re1+ {[%clk 0:00:04]} 61. Kb2 {[%clk 0:00:06]}  Re2+ {[%clk 0:00:05]} 62. Kb1 {[%clk 0:00:06]}  Kb3 {[%clk 0:00:05]} 63. Rb8+ {[%clk 0:00:06]}  Kc3 {[%clk 0:00:06]} 64. Rc8+ {[%clk 0:00:07]}  Kb3 {[%clk 0:00:06]} 65. Rb8+ {[%clk 0:00:07]}  Kc3 {[%clk 0:00:07]} 66. Rc8+ {[%clk 0:00:08]}  Kb3 {[%clk 0:00:08]} 67. Rb8+ {[%clk 0:00:08]} 1/2-1/2

[Event "January 9 Late 2024"]
[Site "https://www.chess.com"]
[Date "2024.01.09"]
[Round "2"]
[White "Andrews, Todd"]
[Black "Timmermans, Mark"]
[Result "1/2-1/2"]
[Board "132"]
[TimeControl "180+1"]
[WhiteFideId "2012456"]
[BlackFideId "1026399"]
[WhiteElo "2433"]
[BlackElo "2748"]
[WhiteTeam "USA"]
[BlackTeam "NED"]
[WhiteClock "0:00:14"]
[BlackClock "0:00:43"]

1. d4 {[%clk 0:03:00]}  Nf6 {[%clk 0:02:59]} 2. c4 {[%clk 0:03:01]}  e6 {[%clk 0:02:58]} 3. Nc3 {[%clk 0:03:01]}  Bb4 {[%clk 0:02:59]} 4. Qc2 {[%clk 0:03:02]}  O-O {[%clk 0:02:58]} 5. a3 {[%clk 0:03:03]}  Bxc3+ {[%clk 0:02:58]} 6. Qxc3 {[%clk 0:03:04]}  b5 {[%clk 0:02:58]} 7. cxb5 {[%clk 0:03:02]}  c6 {[%clk 0:02:59]} 8. e3 {[%clk 0:03:01]}  cxb5 {[%clk 0:02:59]} 9. Bxb5 {[%clk 0:03:01]}  Bb7 {[%clk 0:03:00]} 10. f3 {[%clk 0:02:58]}  Qb6 {[%clk 0:02:53]} 11. Bd3 {[%clk 0:02:51]}  Rc8 {[%clk 0:02:52]} 12. Qd2 {[%clk 0:02:50]}  Nc6 {[%clk 0:02:47]} 13. b4 {[%clk 0:02:40]}  Ba6 {[%clk 0:02:41]} 14. Ne2 {[%clk 0:02:33]}  Bxd3 {[%clk 0:02:40]} 15. Qxd3 {[%clk 0:02:32]}  Ne7 {[%clk 0:02:33]} 16. O-O {[%clk 0:02:27]}  a5 {[%clk 0:02:30]} 17. Bd2 {[%clk 0:02:26]}  axb4 {[%clk 0:02:28]} 18. axb4 {[%clk 0:02:25]}  Rxa1 {[%clk 0:02:29]} 19. Rxa1 {[%clk 0:02:24]}  Ned5 {[%clk 0:02:30]} 20. b5 {[%clk 0:02:12]}  Rb8 {[%clk 0:02:24]} 21. e4 {[%clk 0:01:46]}  Nc7 {[%clk 0:02:24]} 22. Ba5 {[%clk 0:01:40]}  Qxb5 {[%clk 0:02:21]} 23. Qxb5 {[%clk 0:01:40]}  Nxb5 {[%clk 0:02:22]} 24. Rb1 {[%clk 0:01:40]}  Rb7 {[%clk 0:02:08]} 25. Nc3 {[%clk 0:01:13]}  Nd6 {[%clk 0:02:06]} 26. Rxb7 {[%clk 0:01:12]}  Nxb7 {[%clk 0:02:07]} 27. Bc7 {[%clk 0:01:10]}  Ne8 {[%clk 0:02:05]} 28. Bg3 {[%clk 0:01:02]}  Kf8 {[%clk 0:02:01]} 29. Kf2 {[%clk 0:01:03]}  Ke7 {[%clk 0:02:00]} 30. Ke3 {[%clk 0:01:03]}  d6 {[%clk 0:01:57]} 31. Kd3 {[%clk 0:01:03]}  Kd7 {[%clk 0:01:58]} 32. Nd1 {[%clk 0:00:57]}  Kc6 {[%clk 0:01:55]} 33. Ne3 {[%clk 0:00:58]}  Nc7 {[%clk 0:01:54]} 34. Nc4 {[%clk 0:00:55]}  Nb5 {[%clk 0:01:44]} 35. Ne3 {[%clk 0:00:51]}  Nc7 {[%clk 0:01:35]} 36. Nc4 {[%clk 0:00:51]}  g6 {[%clk 0:01:34]} 37. h3 {[%clk 0:00:48]}  h5 {[%clk 0:01:22]} 38. Ne3 {[%clk 0:00:41]}  Na5 {[%clk 0:01:17]} 39. Be1 {[%clk 0:00:35]}  Nb7 {[%clk 0:01:05]} 40. g4 {[%clk 0:00:36]}  Ne8 {[%clk 0:01:01]} 41. gxh5 {[%clk 0:00:34]}  gxh5 {[%clk 0:01:01]} 42. Bg3 {[%clk 0:00:34]}  Kd7 {[%clk 0:00:51]} 43. Ng2 {[%clk 0:00:34]}  Ke7 {[%clk 0:00:44]} 44. Nf4 {[%clk 0:00:34]}  Ng7 {[%clk 0:00:44]} 45. Bh4+ {[%clk 0:00:33]}  f6 {[%clk 0:00:45]} 46. e5 {[%clk 0:00:32]}  dxe5 {[%clk 0:00:41]} 47. dxe5 {[%clk 0:00:33]}  Nc5+ {[%clk 0:00:41]} 48. Ke3 {[%clk 0:00:30]}  Nd7 {[%clk 0:00:42]} 49. exf6+ {[%clk 0:00:29]}  Nxf6 {[%clk 0:00:43]} 50. Ng6+ {[%clk 0:00:26]}  Kf7 {[%clk 0:00:43]} 51. Ne5+ {[%clk 0:00:26]}  Ke7 {[%clk 0:00:43]} 52. Kf4 {[%clk 0:00:23]}  Nf5 {[%clk 0:00:40]} 53. Ng6+ {[%clk 0:00:22]}  Kf7 {[%clk 0:00:40]} 54. Ne5+ {[%clk 0:00:23]}  Kg7 {[%clk 0:00:40]} 55. Bxf6+ {[%clk 0:00:19]}  Kxf6 {[%clk 0:00:41]} 56. Nd7+ {[%clk 0:00:18]}  Ke7 {[%clk 0:00:40]} 57. Nc5 {[%clk 0:00:18]}  Nd6 {[%clk 0:00:40]} 58. Kg5 {[%clk 0:00:17]}  Nf7+ {[%clk 0:00:39]} 59. Kxh5 {[%clk 0:00:17]}  Kf6 {[%clk 0:00:39]} 60. Kg4 {[%clk 0:00:15]}  Ne5+ {[%clk 0:00:39]} 61. Kf4 {[%clk 0:00:15]}  Ng6+ {[%clk 0:00:40]} 62. Kg3 {[%clk 0:00:15]}  e5 {[%clk 0:00:40]} 63. h4 {[%clk 0:00:15]}  Kf5 {[%clk 0:00:38]} 64. Ne4 {[%clk 0:00:15]}  Nf4 {[%clk 0:00:39]} 65. Nd6+ {[%clk 0:00:15]}  Kg6 {[%clk 0:00:39]} 66. Nc4 {[%clk 0:00:15]}  Nh5+ {[%clk 0:00:38]} 67. Kg4 {[%clk 0:00:15]}  Nf6+ {[%clk 0:00:38]} 68. Kh3 {[%clk 0:00:16]}  Kf5 {[%clk 0:00:38]} 69. Nxe5 {[%clk 0:00:12]}  Kxe5 {[%clk 0:00:38]} 70. Kg3 {[%clk 0:00:12]}  Kf5 {[%clk 0:00:38]} 71. Kh3 {[%clk 0:00:12]}  Nh5 {[%clk 0:00:39]} 72. Kg2 {[%clk 0:00:13]}  Kf4 {[%clk 0:00:40]} 73. Kf2 {[%clk 0:00:13]}  Nf6 {[%clk 0:00:40]} 74. Kg2 {[%clk 0:00:13]}  Nh5 {[%clk 0:00:41]} 75. Kf2 {[%clk 0:00:13]}  Nf6 {[%clk 0:00:41]} 76. Ke2 {[%clk 0:00:14]}  Ng4 {[%clk 0:00:40]} 77. h5 {[%clk 0:00:13]}  Nh6 {[%clk 0:00:40]} 78. Kf2 {[%clk 0:00:13]}  Kg5 {[%clk 0:00:40]} 79. Kg3 {[%clk 0:00:13]}  Kxh5 {[%clk 0:00:41]} 80. Kf4 {[%clk 0:00:13]}  Kg6 {[%clk 0:00:41]} 81. Ke5 {[%clk 0:00:14]}  Ng4+ {[%clk 0:00:41]} 82. fxg4 {[%clk 0:00:14]}  Kg5 {[%clk 0:00:42]} 83. Ke4 {[%clk 0:00:14]}  Kxg4 {[%clk 0:00:43]} 1/2-1/2